[Event "Titled Tuesday Blitz August 1 Late 2023"]
[White "Korchmar, Vasiliy"]
[Black "Makarian, Rudik"]
[WhiteFideId "24131750"]
[BlackFideId "44105681"]
[WhiteElo "2671"]
[BlackElo "3006"]
[Result "1/2-1/2"]
[Round "5"]
[TimeControl "180+1"]
[Date "2023.08.01"]
[WhiteClock "0:00:10"]
[BlackClock "0:00:09"]
[Board "16"]

1. e4 {[%clk 0:03:00]}  e6 {[%clk 0:02:53]} 2. d4 {[%clk 0:02:59]}  d5 {[%clk 0:02:53]} 3. e5 {[%clk 0:03:00]}  c5 {[%clk 0:02:54]} 4. c3 {[%clk 0:03:00]}  Nc6 {[%clk 0:02:54]} 5. Nf3 {[%clk 0:03:00]}  Bd7 {[%clk 0:02:53]} 6. Be2 {[%clk 0:02:59]}  Nge7 {[%clk 0:02:48]} 7. Na3 {[%clk 0:02:58]}  cxd4 {[%clk 0:02:42]} 8. cxd4 {[%clk 0:02:59]}  Nf5 {[%clk 0:02:42]} 9. Nc2 {[%clk 0:02:59]}  Be7 {[%clk 0:02:43]} 10. O-O {[%clk 0:02:56]}  O-O {[%clk 0:02:43]} 11. Bd3 {[%clk 0:02:53]}  f6 {[%clk 0:02:39]} 12. Bxf5 {[%clk 0:02:37]}  exf5 {[%clk 0:02:38]} 13. Bf4 {[%clk 0:02:37]}  g5 {[%clk 0:02:28]} 14. exf6 {[%clk 0:02:36]}  Bxf6 {[%clk 0:02:27]} 15. Be5 {[%clk 0:02:36]}  g4 {[%clk 0:02:25]} 16. Bxf6 {[%clk 0:02:31]}  Qxf6 {[%clk 0:02:26]} 17. Ne5 {[%clk 0:02:15]}  Nxe5 {[%clk 0:02:23]} 18. dxe5 {[%clk 0:02:16]}  Qxe5 {[%clk 0:02:23]} 19. Re1 {[%clk 0:02:16]}  Qd6 {[%clk 0:02:21]} 20. Ne3 {[%clk 0:02:13]}  Bc6 {[%clk 0:02:17]} 21. Qd3 {[%clk 0:01:46]}  Qf6 {[%clk 0:01:32]} 22. Nxd5 {[%clk 0:01:43]}  Bxd5 {[%clk 0:01:31]} 23. Qxd5+ {[%clk 0:01:43]}  Qf7 {[%clk 0:01:32]} 24. Qd4 {[%clk 0:01:29]}  Rfd8 {[%clk 0:01:25]} 25. Qf4 {[%clk 0:01:27]}  Rd5 {[%clk 0:01:20]} 26. Qg5+ {[%clk 0:01:12]}  Qg6 {[%clk 0:01:15]} 27. Qe7 {[%clk 0:01:11]}  Qf7 {[%clk 0:01:09]} 28. Qg5+ {[%clk 0:01:11]}  Qg7 {[%clk 0:00:52]} 29. Qxg7+ {[%clk 0:01:07]}  Kxg7 {[%clk 0:00:53]} 30. Re7+ {[%clk 0:01:07]}  Kg6 {[%clk 0:00:52]} 31. Rxb7 {[%clk 0:01:08]}  Rad8 {[%clk 0:00:49]} 32. g3 {[%clk 0:01:05]}  Rd2 {[%clk 0:00:49]} 33. Rc1 {[%clk 0:00:48]}  Rd1+ {[%clk 0:00:47]} 34. Rxd1 {[%clk 0:00:48]}  Rxd1+ {[%clk 0:00:48]} 35. Kg2 {[%clk 0:00:49]}  Rd2 {[%clk 0:00:46]} 36. Rxa7 {[%clk 0:00:44]}  Rxb2 {[%clk 0:00:45]} 37. a4 {[%clk 0:00:45]}  Ra2 {[%clk 0:00:45]} 38. a5 {[%clk 0:00:44]}  h5 {[%clk 0:00:44]} 39. a6 {[%clk 0:00:44]}  Ra1 {[%clk 0:00:45]} 40. Ra8 {[%clk 0:00:44]}  Kg7 {[%clk 0:00:45]} 41. a7 {[%clk 0:00:36]}  Kh7 {[%clk 0:00:43]} 42. Rf8 {[%clk 0:00:23]}  Rxa7 {[%clk 0:00:42]} 43. Rxf5 {[%clk 0:00:23]}  Kg6 {[%clk 0:00:42]} 44. Rc5 {[%clk 0:00:24]}  Ra1 {[%clk 0:00:42]} 45. h3 {[%clk 0:00:22]}  Rb1 {[%clk 0:00:41]} 46. Rc6+ {[%clk 0:00:19]}  Kf5 {[%clk 0:00:27]} 47. Rc5+ {[%clk 0:00:17]}  Kg6 {[%clk 0:00:27]} 48. Rc6+ {[%clk 0:00:16]}  Kf5 {[%clk 0:00:27]} 49. h4 {[%clk 0:00:14]}  Rb5 {[%clk 0:00:26]} 50. Rh6 {[%clk 0:00:12]}  Ke4 {[%clk 0:00:25]} 51. Rg6 {[%clk 0:00:11]}  Rf5 {[%clk 0:00:16]} 52. Rh6 {[%clk 0:00:08]}  Kd3 {[%clk 0:00:14]} 53. Re6 {[%clk 0:00:07]}  Kd4 {[%clk 0:00:14]} 54. Kf1 {[%clk 0:00:06]}  Kd5 {[%clk 0:00:13]} 55. Rg6 {[%clk 0:00:05]}  Ke4 {[%clk 0:00:13]} 56. Ke2 {[%clk 0:00:05]}  Re5 {[%clk 0:00:11]} 57. Kf1 {[%clk 0:00:04]}  Rf5 {[%clk 0:00:11]} 58. Rh6 {[%clk 0:00:03]}  Kf3 {[%clk 0:00:08]} 59. Kg1 {[%clk 0:00:03]}  Ke4 {[%clk 0:00:08]} 60. Kg2 {[%clk 0:00:03]}  Ke5 {[%clk 0:00:06]} 61. Rg6 {[%clk 0:00:03]}  Ke4 {[%clk 0:00:06]} 62. Rg8 {[%clk 0:00:03]}  Ra5 {[%clk 0:00:05]} 63. Re8+ {[%clk 0:00:04]}  Kf5 {[%clk 0:00:04]} 64. Rf8+ {[%clk 0:00:05]}  Kg6 {[%clk 0:00:04]} 65. Rf4 {[%clk 0:00:05]}  Ra1 {[%clk 0:00:05]} 66. Rc4 {[%clk 0:00:06]}  Rb1 {[%clk 0:00:05]} 67. Rc6+ {[%clk 0:00:06]}  Kg7 {[%clk 0:00:05]} 68. Rc7+ {[%clk 0:00:06]}  Kg6 {[%clk 0:00:06]} 69. Rc5 {[%clk 0:00:07]}  Ra1 {[%clk 0:00:06]} 70. Rg5+ {[%clk 0:00:08]}  Kh6 {[%clk 0:00:06]} 71. Re5 {[%clk 0:00:08]}  Rb1 {[%clk 0:00:07]} 72. Re2 {[%clk 0:00:08]}  Rc1 {[%clk 0:00:07]} 73. Rd2 {[%clk 0:00:09]}  Ra1 {[%clk 0:00:07]} 74. f3 {[%clk 0:00:09]}  gxf3+ {[%clk 0:00:07]} 75. Kxf3 {[%clk 0:00:10]}  Kg6 {[%clk 0:00:07]} 76. Rd6+ {[%clk 0:00:10]}  Kg7 {[%clk 0:00:06]} 77. Re6 {[%clk 0:00:09]}  Ra3+ {[%clk 0:00:04]} 78. Kf4 {[%clk 0:00:09]}  Ra4+ {[%clk 0:00:05]} 79. Kf5 {[%clk 0:00:09]}  Rg4 {[%clk 0:00:04]} 80. Re3 {[%clk 0:00:08]}  Kh6 {[%clk 0:00:04]} 81. Re6+ {[%clk 0:00:08]}  Kh7 {[%clk 0:00:05]} 82. Re7+ {[%clk 0:00:08]}  Kh6 {[%clk 0:00:05]} 83. Re3 {[%clk 0:00:09]}  Kh7 {[%clk 0:00:06]} 84. Rf3 {[%clk 0:00:09]}  Kh6 {[%clk 0:00:05]} 85. Ke5 {[%clk 0:00:09]}  Kh7 {[%clk 0:00:05]} 86. Rf7+ {[%clk 0:00:09]}  Kg6 {[%clk 0:00:05]} 87. Rf6+ {[%clk 0:00:09]}  Kg7 {[%clk 0:00:05]} 88. Rf3 {[%clk 0:00:09]}  Kg6 {[%clk 0:00:06]} 89. Rb3 {[%clk 0:00:09]}  Kh7 {[%clk 0:00:06]} 90. Rb7+ {[%clk 0:00:09]}  Kh6 {[%clk 0:00:07]} 91. Rb6+ {[%clk 0:00:10]}  Kh7 {[%clk 0:00:08]} 92. Rb7+ {[%clk 0:00:10]}  Kh6 {[%clk 0:00:08]} 93. Rb6+ {[%clk 0:00:10]}  Kh7 {[%clk 0:00:09]} 94. Rb7+ {[%clk 0:00:10]} 1/2-1/2


[Site "https://www.chess.com"]

[Event "Titled Tuesday Blitz August 1 Late 2023"]
[White "Ardelean, George-Catalin"]
[Black "Grischuk, Alexander"]
[WhiteFideId "1207091"]
[BlackFideId "4126025"]
[WhiteElo "2670"]
[BlackElo "2997"]
[Result "0-1"]
[Round "5"]
[TimeControl "180+1"]
[Date "2023.08.01"]
[WhiteClock "0:00:14"]
[BlackClock "0:00:20"]
[Board "17"]

1. e4 {[%clk 0:02:59]}  e6 {[%clk 0:02:59]} 2. d4 {[%clk 0:02:53]}  d5 {[%clk 0:02:58]} 3. exd5 {[%clk 0:02:49]}  exd5 {[%clk 0:02:58]} 4. Nf3 {[%clk 0:02:50]}  Nc6 {[%clk 0:02:58]} 5. Bb5 {[%clk 0:02:48]}  Bd6 {[%clk 0:02:55]} 6. c4 {[%clk 0:02:46]}  dxc4 {[%clk 0:02:56]} 7. d5 {[%clk 0:02:43]}  a6 {[%clk 0:02:55]} 8. Bxc4 {[%clk 0:02:38]}  Qe7+ {[%clk 0:02:46]} 9. Be3 {[%clk 0:02:28]}  Ne5 {[%clk 0:02:45]} 10. Nxe5 {[%clk 0:02:13]}  Qxe5 {[%clk 0:02:37]} 11. Nc3 {[%clk 0:02:11]}  Ne7 {[%clk 0:02:32]} 12. Qd4 {[%clk 0:02:07]}  Nf5 {[%clk 0:02:32]} 13. Qxe5+ {[%clk 0:02:07]}  Bxe5 {[%clk 0:02:33]} 14. Bd2 {[%clk 0:02:05]}  Bd7 {[%clk 0:02:28]} 15. O-O {[%clk 0:02:00]}  O-O-O {[%clk 0:02:16]} 16. Bd3 {[%clk 0:01:48]}  Rhe8 {[%clk 0:02:11]} 17. Rfe1 {[%clk 0:01:45]}  h5 {[%clk 0:02:08]} 18. Rab1 {[%clk 0:01:34]}  f6 {[%clk 0:02:03]} 19. Ne4 {[%clk 0:01:32]}  Bb5 {[%clk 0:02:00]} 20. Bxb5 {[%clk 0:01:10]}  axb5 {[%clk 0:02:01]} 21. Nc3 {[%clk 0:00:59]}  Bxc3 {[%clk 0:02:01]} 22. Bxc3 {[%clk 0:00:53]}  Rxe1+ {[%clk 0:02:01]} 23. Rxe1 {[%clk 0:00:53]}  Rxd5 {[%clk 0:02:02]} 24. f3 {[%clk 0:00:53]}  Kd7 {[%clk 0:02:01]} 25. Kf2 {[%clk 0:00:52]}  c5 {[%clk 0:02:00]} 26. g4 {[%clk 0:00:51]}  hxg4 {[%clk 0:01:59]} 27. fxg4 {[%clk 0:00:52]}  Ne7 {[%clk 0:01:53]} 28. Re2 {[%clk 0:00:49]}  b4 {[%clk 0:01:53]} 29. Bd2 {[%clk 0:00:49]}  Ng6 {[%clk 0:01:50]} 30. Kg3 {[%clk 0:00:44]}  Rd3+ {[%clk 0:01:50]} 31. Be3 {[%clk 0:00:42]}  Ne7 {[%clk 0:01:40]} 32. Rd2 {[%clk 0:00:37]}  Rxd2 {[%clk 0:01:40]} 33. Bxd2 {[%clk 0:00:38]}  Ke6 {[%clk 0:01:31]} 34. Kf3 {[%clk 0:00:35]}  Kd5 {[%clk 0:01:29]} 35. h4 {[%clk 0:00:35]}  Nc6 {[%clk 0:01:29]} 36. h5 {[%clk 0:00:33]}  Ne5+ {[%clk 0:01:00]} 37. Kf4 {[%clk 0:00:32]}  Ke6 {[%clk 0:01:00]} 38. b3 {[%clk 0:00:28]}  b5 {[%clk 0:00:53]} 39. Kg3 {[%clk 0:00:23]}  Nc6 {[%clk 0:00:44]} 40. Kf4 {[%clk 0:00:21]}  Ne5 {[%clk 0:00:36]} 41. Kg3 {[%clk 0:00:20]}  Nd3 {[%clk 0:00:34]} 42. g5 {[%clk 0:00:19]}  fxg5 {[%clk 0:00:33]} 43. Bxg5 {[%clk 0:00:19]}  c4 {[%clk 0:00:33]} 44. Kf3 {[%clk 0:00:18]}  Kf5 {[%clk 0:00:23]} 45. Be3 {[%clk 0:00:18]}  c3 {[%clk 0:00:21]} 46. Ke2 {[%clk 0:00:17]}  Ke4 {[%clk 0:00:21]} 47. Bg5 {[%clk 0:00:14]}  c2 {[%clk 0:00:20]} 0-1


[Site "https://www.chess.com"]

[Event "Titled Tuesday Blitz August 1 Late 2023"]
[White "Bjelobrk, Igor"]
[Black "Zakhartsov, Vladimir"]
[WhiteFideId "4300726"]
[BlackFideId "4145097"]
[WhiteElo "2657"]
[BlackElo "2914"]
[Result "1-0"]
[Round "5"]
[TimeControl "180+1"]
[Date "2023.08.01"]
[WhiteClock "0:00:13"]
[BlackClock "0:00:01"]
[Board "20"]

1. d4 {[%clk 0:03:00]}  Nf6 {[%clk 0:02:57]} 2. c4 {[%clk 0:02:59]}  e6 {[%clk 0:02:51]} 3. g3 {[%clk 0:02:58]}  d5 {[%clk 0:02:50]} 4. Nf3 {[%clk 0:02:57]}  Bb4+ {[%clk 0:02:49]} 5. Bd2 {[%clk 0:02:57]}  Be7 {[%clk 0:02:50]} 6. Bg2 {[%clk 0:02:57]}  O-O {[%clk 0:02:49]} 7. O-O {[%clk 0:02:57]}  a5 {[%clk 0:02:40]} 8. Qc2 {[%clk 0:02:51]}  c6 {[%clk 0:02:39]} 9. Rd1 {[%clk 0:02:42]}  a4 {[%clk 0:02:33]} 10. Bg5 {[%clk 0:02:34]}  Nbd7 {[%clk 0:02:32]} 11. Nbd2 {[%clk 0:02:33]}  h6 {[%clk 0:02:31]} 12. Bxf6 {[%clk 0:02:33]}  Nxf6 {[%clk 0:02:29]} 13. e4 {[%clk 0:02:33]}  dxe4 {[%clk 0:02:29]} 14. Nxe4 {[%clk 0:02:33]}  Qb6 {[%clk 0:02:22]} 15. Ne5 {[%clk 0:02:28]}  Rd8 {[%clk 0:02:19]} 16. c5 {[%clk 0:02:26]}  Qc7 {[%clk 0:02:14]} 17. Nc4 {[%clk 0:02:25]}  Nd5 {[%clk 0:02:12]} 18. a3 {[%clk 0:02:21]}  b5 {[%clk 0:02:05]} 19. cxb6 {[%clk 0:02:20]}  Nxb6 {[%clk 0:02:04]} 20. Ne5 {[%clk 0:02:19]}  Bb7 {[%clk 0:02:02]} 21. Rac1 {[%clk 0:02:16]}  Nd5 {[%clk 0:01:57]} 22. Nc5 {[%clk 0:02:12]}  Rdc8 {[%clk 0:01:49]} 23. Nxa4 {[%clk 0:02:01]}  Bg5 {[%clk 0:01:37]} 24. Rb1 {[%clk 0:01:58]}  Bf6 {[%clk 0:01:33]} 25. Nc5 {[%clk 0:01:53]}  Ba6 {[%clk 0:01:31]} 26. Re1 {[%clk 0:01:37]}  Be7 {[%clk 0:01:26]} 27. Rbc1 {[%clk 0:01:36]}  Bb5 {[%clk 0:01:26]} 28. Bh3 {[%clk 0:01:33]}  Bxc5 {[%clk 0:01:22]} 29. Qxc5 {[%clk 0:01:32]}  Qb7 {[%clk 0:01:14]} 30. Nxf7 {[%clk 0:01:02]}  Kxf7 {[%clk 0:01:15]} 31. Bxe6+ {[%clk 0:01:03]}  Kf6 {[%clk 0:01:11]} 32. Qc2 {[%clk 0:00:20]}  g6 {[%clk 0:01:00]} 33. Bxc8 {[%clk 0:00:20]}  Rxc8 {[%clk 0:01:00]} 34. Re5 {[%clk 0:00:20]}  Qd7 {[%clk 0:00:53]} 35. Rce1 {[%clk 0:00:20]}  Kf7 {[%clk 0:00:33]} 36. a4 {[%clk 0:00:20]}  Ba6 {[%clk 0:00:30]} 37. Qc5 {[%clk 0:00:18]}  Rc7 {[%clk 0:00:22]} 38. b4 {[%clk 0:00:18]}  Bb7 {[%clk 0:00:16]} 39. Rc1 {[%clk 0:00:16]}  Rc8 {[%clk 0:00:10]} 40. a5 {[%clk 0:00:16]}  Nf6 {[%clk 0:00:08]} 41. Qc4+ {[%clk 0:00:14]}  Nd5 {[%clk 0:00:06]} 42. a6 {[%clk 0:00:14]}  Ba8 {[%clk 0:00:06]} 43. b5 {[%clk 0:00:14]}  Kg7 {[%clk 0:00:03]} 44. Rxd5 {[%clk 0:00:12]}  cxd5 {[%clk 0:00:01]} 45. Qxc8 {[%clk 0:00:12]}  Qxb5 {[%clk 0:00:01]} 46. Qxa8 {[%clk 0:00:13]}  Qb2 {[%clk 0:00:01]} 47. Qb7+ {[%clk 0:00:13]}  Kf6 {[%clk 0:00:01]} 48. Qxb2 {[%clk 0:00:13]} 1-0


[Site "https://www.chess.com"]

[Event "Titled Tuesday Blitz August 1 Late 2023"]
[White "Jakubowski, Krzysztof"]
[Black "Perez Ponsa, Federico"]
[WhiteFideId "1112848"]
[BlackFideId "117927"]
[WhiteElo "2652"]
[BlackElo "2874"]
[Result "0-1"]
[Round "5"]
[TimeControl "180+1"]
[Date "2023.08.01"]
[WhiteClock "0:00:00"]
[BlackClock "0:01:42"]
[Board "21"]

1. e4 {[%clk 0:02:55]}  c6 {[%clk 0:02:50]} 2. Nf3 {[%clk 0:02:51]}  d5 {[%clk 0:02:51]} 3. d3 {[%clk 0:02:51]}  dxe4 {[%clk 0:02:49]} 4. dxe4 {[%clk 0:02:51]}  Qxd1+ {[%clk 0:02:50]} 5. Kxd1 {[%clk 0:02:51]}  Nf6 {[%clk 0:02:51]} 6. Nfd2 {[%clk 0:02:51]}  h5 {[%clk 0:02:49]} 7. a4 {[%clk 0:02:48]}  h4 {[%clk 0:02:48]} 8. a5 {[%clk 0:02:48]}  g5 {[%clk 0:02:46]} 9. Nc3 {[%clk 0:02:42]}  g4 {[%clk 0:02:43]} 10. Nc4 {[%clk 0:02:37]}  Be6 {[%clk 0:02:41]} 11. f4 {[%clk 0:02:20]}  gxf3 {[%clk 0:02:38]} 12. gxf3 {[%clk 0:02:20]}  Na6 {[%clk 0:02:33]} 13. Ne3 {[%clk 0:01:59]}  O-O-O+ {[%clk 0:02:32]} 14. Ke1 {[%clk 0:01:57]}  Nb4 {[%clk 0:02:29]} 15. Ra4 {[%clk 0:01:55]}  c5 {[%clk 0:02:28]} 16. e5 {[%clk 0:01:11]}  Nh5 {[%clk 0:02:18]} 17. Ne4 {[%clk 0:01:05]}  Bh6 {[%clk 0:02:11]} 18. Kf2 {[%clk 0:00:54]}  b6 {[%clk 0:02:03]} 19. axb6 {[%clk 0:00:47]}  axb6 {[%clk 0:02:02]} 20. c3 {[%clk 0:00:42]}  Nc6 {[%clk 0:01:54]} 21. Ra8+ {[%clk 0:00:34]}  Kb7 {[%clk 0:01:53]} 22. Rxd8 {[%clk 0:00:34]}  Rxd8 {[%clk 0:01:54]} 23. Rg1 {[%clk 0:00:30]}  Nxe5 {[%clk 0:01:46]} 24. Bb5 {[%clk 0:00:00]}  Nf4 {[%clk 0:01:42]} 0-1


[Site "https://www.chess.com"]

[Event "Titled Tuesday Blitz August 1 Late 2023"]
[White "Timerkhanov, Alexander"]
[Black "Maksimovic, Bojan"]
[WhiteFideId "24177938"]
[BlackFideId "14408120"]
[WhiteElo "2640"]
[BlackElo "2846"]
[Result "0-1"]
[Round "5"]
[TimeControl "180+1"]
[Date "2023.08.01"]
[WhiteClock "0:00:46"]
[BlackClock "0:00:42"]
[Board "23"]

1. d4 {[%clk 0:03:00]}  g6 {[%clk 0:03:00]} 2. e4 {[%clk 0:03:00]}  Nf6 {[%clk 0:03:01]} 3. Nc3 {[%clk 0:02:58]}  d5 {[%clk 0:03:00]} 4. exd5 {[%clk 0:02:56]}  Nxd5 {[%clk 0:02:59]} 5. Nxd5 {[%clk 0:02:56]}  Qxd5 {[%clk 0:03:00]} 6. c4 {[%clk 0:02:56]}  Qd6 {[%clk 0:02:54]} 7. Nf3 {[%clk 0:02:54]}  Bg7 {[%clk 0:02:54]} 8. Be3 {[%clk 0:02:53]}  O-O {[%clk 0:02:53]} 9. Be2 {[%clk 0:02:53]}  Nc6 {[%clk 0:02:45]} 10. d5 {[%clk 0:02:53]}  Ne5 {[%clk 0:02:40]} 11. Nd4 {[%clk 0:02:51]}  c6 {[%clk 0:02:34]} 12. dxc6 {[%clk 0:02:46]}  Nxc6 {[%clk 0:02:31]} 13. Nxc6 {[%clk 0:02:35]}  Qxc6 {[%clk 0:02:32]} 14. O-O {[%clk 0:02:26]}  Bxb2 {[%clk 0:02:24]} 15. Rb1 {[%clk 0:02:26]}  Bg7 {[%clk 0:02:10]} 16. Qb3 {[%clk 0:02:26]}  Bf5 {[%clk 0:01:49]} 17. Bf3 {[%clk 0:02:25]}  Be4 {[%clk 0:01:47]} 18. Bxe4 {[%clk 0:02:25]}  Qxe4 {[%clk 0:01:48]} 19. Qxb7 {[%clk 0:02:25]}  Qxc4 {[%clk 0:01:42]} 20. Qxe7 {[%clk 0:02:17]}  Qxa2 {[%clk 0:01:37]} 21. Rb7 {[%clk 0:02:17]}  a5 {[%clk 0:01:36]} 22. h4 {[%clk 0:02:12]}  h5 {[%clk 0:01:28]} 23. Rc1 {[%clk 0:02:10]}  a4 {[%clk 0:01:22]} 24. Rcc7 {[%clk 0:02:10]}  a3 {[%clk 0:01:13]} 25. Ra7 {[%clk 0:02:10]}  Rxa7 {[%clk 0:00:57]} 26. Rxa7 {[%clk 0:02:11]}  Qa1+ {[%clk 0:00:56]} 27. Kh2 {[%clk 0:02:11]}  a2 {[%clk 0:00:51]} 28. g3 {[%clk 0:00:46]}  Qb1 {[%clk 0:00:42]} 0-1


[Site "https://www.chess.com"]

[Event "Titled Tuesday Blitz August 1 Late 2023"]
[White "Bazeev, German"]
[Black "Piesik, Piotr"]
[WhiteFideId "24119350"]
[BlackFideId "1136194"]
[WhiteElo "2826"]
[BlackElo "2619"]
[Result "0-1"]
[Round "5"]
[TimeControl "180+1"]
[Date "2023.08.01"]
[WhiteClock "0:00:05"]
[BlackClock "0:00:06"]
[Board "25"]

1. d4 {[%clk 0:02:56]}  c5 {[%clk 0:02:58]} 2. d5 {[%clk 0:02:56]}  e5 {[%clk 0:02:57]} 3. c4 {[%clk 0:02:56]}  d6 {[%clk 0:02:57]} 4. Nc3 {[%clk 0:02:56]}  Be7 {[%clk 0:02:57]} 5. e4 {[%clk 0:02:57]}  Bg5 {[%clk 0:02:57]} 6. g3 {[%clk 0:02:46]}  Bxc1 {[%clk 0:02:57]} 7. Rxc1 {[%clk 0:02:46]}  Ne7 {[%clk 0:02:58]} 8. Bg2 {[%clk 0:02:44]}  O-O {[%clk 0:02:58]} 9. Nge2 {[%clk 0:02:44]}  Nd7 {[%clk 0:02:57]} 10. O-O {[%clk 0:02:42]}  f5 {[%clk 0:02:58]} 11. f4 {[%clk 0:02:37]}  a6 {[%clk 0:02:55]} 12. a4 {[%clk 0:02:33]}  Qb6 {[%clk 0:02:52]} 13. b3 {[%clk 0:02:21]}  exf4 {[%clk 0:02:49]} 14. Nxf4 {[%clk 0:02:15]}  Ne5 {[%clk 0:02:49]} 15. Ne6 {[%clk 0:02:07]}  Bxe6 {[%clk 0:02:41]} 16. dxe6 {[%clk 0:02:08]}  fxe4 {[%clk 0:02:36]} 17. Rxf8+ {[%clk 0:02:02]}  Rxf8 {[%clk 0:02:36]} 18. Nxe4 {[%clk 0:02:03]}  Nf5 {[%clk 0:02:32]} 19. a5 {[%clk 0:01:37]}  Qc7 {[%clk 0:02:26]} 20. Nc3 {[%clk 0:01:29]}  Qe7 {[%clk 0:02:09]} 21. Bd5 {[%clk 0:01:20]}  Nd4 {[%clk 0:02:04]} 22. Kg2 {[%clk 0:01:19]}  Nxe6 {[%clk 0:02:01]} 23. Ne4 {[%clk 0:01:13]}  Kh8 {[%clk 0:01:57]} 24. Qh5 {[%clk 0:00:50]}  Nd3 {[%clk 0:01:42]} 25. Rf1 {[%clk 0:00:41]}  Rxf1 {[%clk 0:00:48]} 26. Kxf1 {[%clk 0:00:42]}  Qf8+ {[%clk 0:00:37]} 27. Kg1 {[%clk 0:00:40]}  Nd4 {[%clk 0:00:31]} 28. Qf7 {[%clk 0:00:17]}  Qxf7 {[%clk 0:00:27]} 29. Bxf7 {[%clk 0:00:18]}  Nxb3 {[%clk 0:00:26]} 30. Nxd6 {[%clk 0:00:19]}  Nxa5 {[%clk 0:00:25]} 31. Bd5 {[%clk 0:00:15]}  g6 {[%clk 0:00:19]} 32. Kf1 {[%clk 0:00:13]}  Kg7 {[%clk 0:00:17]} 33. Bxb7 {[%clk 0:00:13]}  Nxb7 {[%clk 0:00:14]} 34. Nxb7 {[%clk 0:00:14]}  Kf6 {[%clk 0:00:14]} 35. Ke2 {[%clk 0:00:13]}  Ne5 {[%clk 0:00:13]} 36. Nxc5 {[%clk 0:00:14]}  a5 {[%clk 0:00:13]} 37. Nb3 {[%clk 0:00:11]}  a4 {[%clk 0:00:13]} 38. Nd2 {[%clk 0:00:09]}  a3 {[%clk 0:00:13]} 39. c5 {[%clk 0:00:08]}  a2 {[%clk 0:00:13]} 40. Nb3 {[%clk 0:00:09]}  Ke6 {[%clk 0:00:13]} 41. Kd2 {[%clk 0:00:09]}  Kd5 {[%clk 0:00:14]} 42. Kc2 {[%clk 0:00:09]}  Kc4 {[%clk 0:00:13]} 43. Kb2 {[%clk 0:00:09]}  Nd3+ {[%clk 0:00:12]} 44. Kxa2 {[%clk 0:00:09]}  Nxc5 {[%clk 0:00:13]} 45. Nd2+ {[%clk 0:00:09]}  Kd3 {[%clk 0:00:14]} 46. Nf3 {[%clk 0:00:10]}  Ke3 {[%clk 0:00:13]} 47. Ng5 {[%clk 0:00:10]}  h5 {[%clk 0:00:13]} 48. Kb2 {[%clk 0:00:10]}  Kf2 {[%clk 0:00:12]} 49. Nh7 {[%clk 0:00:09]}  Ne6 {[%clk 0:00:11]} 50. Nf6 {[%clk 0:00:06]}  Kg2 {[%clk 0:00:11]} 51. g4 {[%clk 0:00:05]}  h4 {[%clk 0:00:11]} 52. Ne4 {[%clk 0:00:03]}  Kxh2 {[%clk 0:00:09]} 53. Kc3 {[%clk 0:00:04]}  Kg2 {[%clk 0:00:09]} 54. Kd3 {[%clk 0:00:05]}  h3 {[%clk 0:00:06]} 55. Ng5 {[%clk 0:00:05]} 0-1


[Site "https://www.chess.com"]

[Event "Titled Tuesday Blitz August 1 Late 2023"]
[White "Grigorov, Grigor"]
[Black "Ozates, Tuna"]
[WhiteFideId "2907313"]
[BlackFideId "6354521"]
[WhiteElo "2783"]
[BlackElo "2611"]
[Result "1-0"]
[Round "5"]
[TimeControl "180+1"]
[Date "2023.08.01"]
[WhiteClock "0:00:07"]
[BlackClock "0:00:00"]
[Board "28"]

1. Nf3 {[%clk 0:03:00]}  c5 {[%clk 0:02:56]} 2. c4 {[%clk 0:03:00]}  Nc6 {[%clk 0:02:54]} 3. b3 {[%clk 0:03:00]}  e5 {[%clk 0:02:54]} 4. Bb2 {[%clk 0:02:58]}  d6 {[%clk 0:02:54]} 5. e3 {[%clk 0:02:53]}  g6 {[%clk 0:02:53]} 6. d4 {[%clk 0:02:52]}  exd4 {[%clk 0:02:53]} 7. exd4 {[%clk 0:02:52]}  Bg7 {[%clk 0:02:53]} 8. Qd2 {[%clk 0:02:39]}  Qf6 {[%clk 0:02:45]} 9. Na3 {[%clk 0:02:14]}  Nge7 {[%clk 0:02:44]} 10. O-O-O {[%clk 0:02:00]}  Bg4 {[%clk 0:02:37]} 11. dxc5 {[%clk 0:01:55]}  Qxb2+ {[%clk 0:02:37]} 12. Qxb2 {[%clk 0:01:55]}  Bxb2+ {[%clk 0:02:38]} 13. Kxb2 {[%clk 0:01:55]}  dxc5 {[%clk 0:02:38]} 14. Be2 {[%clk 0:01:45]}  a6 {[%clk 0:02:35]} 15. h3 {[%clk 0:01:43]}  Be6 {[%clk 0:02:25]} 16. Nc2 {[%clk 0:01:36]}  h6 {[%clk 0:02:23]} 17. Ne3 {[%clk 0:01:30]}  O-O {[%clk 0:01:54]} 18. Nd5 {[%clk 0:01:29]}  Rac8 {[%clk 0:01:51]} 19. Rd2 {[%clk 0:01:22]}  Kg7 {[%clk 0:01:50]} 20. Rhd1 {[%clk 0:01:20]}  Nf5 {[%clk 0:01:49]} 21. Nb6 {[%clk 0:01:16]}  Rce8 {[%clk 0:01:33]} 22. Na4 {[%clk 0:01:13]}  Ncd4 {[%clk 0:00:52]} 23. Nxc5 {[%clk 0:01:10]}  Nxe2 {[%clk 0:00:51]} 24. Rxe2 {[%clk 0:01:08]}  Bc8 {[%clk 0:00:52]} 25. Rxe8 {[%clk 0:01:04]}  Rxe8 {[%clk 0:00:52]} 26. Rd2 {[%clk 0:01:04]}  b6 {[%clk 0:00:50]} 27. Na4 {[%clk 0:01:02]}  b5 {[%clk 0:00:49]} 28. cxb5 {[%clk 0:01:00]}  axb5 {[%clk 0:00:49]} 29. Nc3 {[%clk 0:01:01]}  b4 {[%clk 0:00:44]} 30. Nd5 {[%clk 0:01:00]}  Re4 {[%clk 0:00:39]} 31. g4 {[%clk 0:00:57]}  Ne7 {[%clk 0:00:34]} 32. Nxe7 {[%clk 0:00:49]}  Rxe7 {[%clk 0:00:35]} 33. Nd4 {[%clk 0:00:49]}  Bb7 {[%clk 0:00:32]} 34. Nc2 {[%clk 0:00:39]}  Re4 {[%clk 0:00:29]} 35. Ne3 {[%clk 0:00:35]}  Rf4 {[%clk 0:00:23]} 36. a3 {[%clk 0:00:25]}  bxa3+ {[%clk 0:00:21]} 37. Kxa3 {[%clk 0:00:26]}  Rf3 {[%clk 0:00:22]} 38. h4 {[%clk 0:00:21]}  Rh3 {[%clk 0:00:22]} 39. h5 {[%clk 0:00:19]}  gxh5 {[%clk 0:00:23]} 40. gxh5 {[%clk 0:00:15]}  Rxh5 {[%clk 0:00:22]} 41. Rd7 {[%clk 0:00:15]}  Be4 {[%clk 0:00:21]} 42. Rd4 {[%clk 0:00:14]}  Re5 {[%clk 0:00:20]} 43. Nc4 {[%clk 0:00:11]}  Re6 {[%clk 0:00:20]} 44. Nd6 {[%clk 0:00:10]}  Bc6 {[%clk 0:00:08]} 45. b4 {[%clk 0:00:10]}  h5 {[%clk 0:00:07]} 46. b5 {[%clk 0:00:10]}  Bf3 {[%clk 0:00:05]} 47. b6 {[%clk 0:00:10]}  Re1 {[%clk 0:00:03]} 48. Kb2 {[%clk 0:00:06]}  Re2+ {[%clk 0:00:03]} 49. Kc3 {[%clk 0:00:06]}  Rxf2 {[%clk 0:00:04]} 50. Rf4 {[%clk 0:00:06]}  h4 {[%clk 0:00:02]} 51. b7 {[%clk 0:00:06]}  Bxb7 {[%clk 0:00:02]} 52. Rxf2 {[%clk 0:00:05]}  Bd5 {[%clk 0:00:02]} 53. Nf5+ {[%clk 0:00:04]}  Kf6 {[%clk 0:00:02]} 54. Nxh4+ {[%clk 0:00:05]}  Kg5 {[%clk 0:00:03]} 55. Nf5 {[%clk 0:00:05]}  Be6 {[%clk 0:00:02]} 56. Nd4 {[%clk 0:00:05]}  Bd5 {[%clk 0:00:02]} 57. Kd3 {[%clk 0:00:05]}  f6 {[%clk 0:00:02]} 58. Ke3 {[%clk 0:00:06]}  Bf7 {[%clk 0:00:02]} 59. Rf5+ {[%clk 0:00:06]}  Kg6 {[%clk 0:00:02]} 60. Kf4 {[%clk 0:00:06]}  Be8 {[%clk 0:00:02]} 61. Ra5 {[%clk 0:00:07]}  Bd7 {[%clk 0:00:03]} 62. Nf5 {[%clk 0:00:07]}  Be6 {[%clk 0:00:02]} 63. Ne7+ {[%clk 0:00:07]}  Kf7 {[%clk 0:00:02]} 64. Nd5 {[%clk 0:00:07]}  Kg6 {[%clk 0:00:02]} 65. Ne3 {[%clk 0:00:07]}  Bd7 {[%clk 0:00:03]} 66. Ra6 {[%clk 0:00:07]}  Kf7 {[%clk 0:00:02]} 67. Rb6 {[%clk 0:00:08]}  Be6 {[%clk 0:00:02]} 68. Ng4 {[%clk 0:00:07]}  Ke7 {[%clk 0:00:02]} 69. Rb7+ {[%clk 0:00:07]}  Bd7 {[%clk 0:00:00]} 70. Nxf6 {[%clk 0:00:07]} 1-0


[Site "https://www.chess.com"]